bitfinex/quotes_SOLUSD_20241220
["timestamp","ask_amount","ask_price","bid_price","bid_amount"]
[1734671715830,5.28e-05,194.9,194.89,31.56494784]
[1734671716140,0.96158712,195.06,194.93,21.9597]
[1734671716320,16.74378646,195.09,195.02,15.78247392]
[1734671716523,0.96131254,195.09,195.03,15.78247392]
[1734671716723,15.78247392,195.08,195.01,15.78247392]
[1734671717041,25.26514411,195.03,194.96,25.26514411]
[1734671717219,0.96157104,195.07,194.93,21.9597]
[1734671717412,25.26514411,195.04,194.97,25.26514411]
[1734671717632,0.96143213,195.03,194.96,25.26514411]
[1734671717837,26.22657624,195.03,194.96,25.26514411]
[1734671718227,26.22657624,195.03,194.95,25.26514411]
[1734671718544,26.22657624,195.03,194.92,25.26514411]
[1734671718545,25.26514411,194.99,194.92,25.26514411]
[1734671718714,26.22686769,194.98,194.91,25.26514411]
[1734671718914,25.26514411,194.97,194.89,25.26514411]
[1734671719126,25.26514411,194.95,194.88,25.26514411]
[1734671719328,0.96190151,194.94,194.88,25.26514411]
[1734671719514,25.26514411,194.91,194.84,25.26514411]
[1734671719713,0.96210303,194.9,194.84,25.26514411]
[1734671719913,0.96210303,194.9,194.8,25.26514411]
[1734671719914,25.26514411,194.87,194.8,25.26514411]
[1734671720114,0.96229364,194.86,194.8,25.26514411]
[1734671720345,25.26514411,194.88,194.81,25.26514411]
[1734671720547,25.26514411,194.89,194.82,25.26514411]
[1734671720838,25.26514411,194.87,194.79,25.26514411]
[1734671721025,0.96230432,194.86,194.8,25.26514411]
[1734671721231,25.26514411,194.87,194.8,25.26514411]
[1734671721424,25.26514411,194.89,194.81,25.26514411]
[1734671721632,26.22737941,194.88,194.81,25.26514411]
[1734671724944,25.26514411,194.87,194.8,45.26514411]
[1734671726446,25.26514411,194.89,194.81,25.26514411]
[1734671726740,0.96227468,194.88,194.81,25.26514411]
[1734671726945,25.26514411,194.86,194.79,25.26514411]
[1734671727146,0.96241076,194.85,194.79,25.26514411]
[1734671727341,26.22754819,194.86,194.79,25.26514411]
[1734671727821,0.96240408,194.86,194.79,25.26514411]
[1734671728521,26.22754819,194.86,194.79,25.26514411]
[1734671729448,49.04202811,194.9,194.82,25.26514411]
[1734671729647,0.96221285,194.89,194.82,25.26514411]
[1734671729950,25.26514411,194.88,194.81,25.26514411]
[1734671730123,26.22743568,194.89,194.82,25.26514411]
[1734671730324,25.26514411,194.91,194.84,25.26514411]
[1734671730542,25.26514411,194.92,194.84,25.26514411]
[1734671730939,25.26514411,194.9,194.83,25.26514411]
[1734671731138,25.26514411,194.9,194.82,25.26514411]
[1734671731462,0.96217212,194.89,194.83,25.26514411]
[1734671731650,26.22731623,194.89,194.82,25.26514411]
[1734671731859,26.22731623,194.89,194.81,45.26514411]
[1734671732164,25.26514411,194.88,194.81,45.26514411]
[1734671732330,0.96227823,194.87,194.81,45.26514411]
[1734671732726,25.26514411,194.89,194.81,45.26514411]
[1734671732941,0.962231,194.88,194.82,25.26514411]
[1734671733446,25.26514411,194.9,194.82,25.26514411]
[1734671733630,0.96219937,194.89,194.83,25.26514411]
[1734671733838,0.96219937,194.89,194.82,25.26514411]
[1734671734033,26.22734348,194.89,194.81,45.26514411]
[1734671736335,26.22733362,194.91,194.83,25.26514411]
[1734671737355,25.26514411,194.93,194.86,25.26514411]
[1734671737552,25.26514411,194.94,194.87,25.26514411]
[1734671737751,25.26514411,194.92,194.84,25.26514411]
[1734671737935,25.26514411,194.92,194.85,25.26514411]
[1734671738257,7.3356083,195.04,194.9,20.0]
[1734671738437,25.26514411,195.03,194.9,20.76927988]
[1734671738773,26.22666615,195.02,194.95,25.26514411]
[1734671739069,26.22666615,195.02,194.87,6.0157]
[1734671739070,25.26514411,194.96,194.89,25.26514411]
[1734671739277,26.227029,194.95,194.88,25.26514411]
[1734671739479,25.26514411,194.94,194.87,25.26514411]
[1734671739637,0.96199841,194.93,194.86,25.26514411]
[1734671740032,25.26514411,194.94,194.87,25.26514411]
[1734671740243,25.26514411,194.96,194.88,25.26514411]
[1734671740436,26.22706493,194.95,194.88,25.26514411]
[1734671741053,26.22706493,194.95,194.87,45.26514411]
[1734671741737,25.26514411,194.94,194.87,25.26514411]
[1734671742061,26.22719134,194.93,194.85,25.26514411]
[1734671742236,25.26514411,194.91,194.84,25.26514411]
[1734671742437,25.26514411,194.89,194.82,25.26514411]
[1734671743456,26.22736528,194.89,194.82,25.26514411]
[1734671744063,25.26514411,194.87,194.8,25.26514411]
[1734671744370,26.22745867,194.87,194.8,25.26514411]
[1734671744864,25.26514411,194.86,194.79,25.26514411]
[1734671745040,0.96237818,194.87,194.8,25.26514411]
[1734671745245,26.22752229,194.87,194.8,25.26514411]
[1734671747351,49.04202811,194.83,194.76,25.26514411]
[1734671747546,49.04202811,194.83,194.72,21.3465]
[1734671747547,0.96256672,194.82,194.75,25.26514411]
[1734671748461,26.22771083,194.82,194.75,25.26514411]
[1734671748642,0.96256672,194.82,194.75,25.26514411]
[1734671748847,0.96256373,194.89,194.81,25.26514411]
[1734671749041,26.22770784,194.89,194.82,25.26514411]
[1734671749253,0.96256373,194.89,194.83,25.26514411]
[1734671749566,25.26514411,194.88,194.81,25.26514411]
[1734671749880,0.96231915,194.87,194.81,25.26514411]
[1734671750166,25.26514411,194.92,194.85,25.26514411]
[1734671750355,0.96211452,194.91,194.85,25.26514411]
[1734671750884,0.96208112,194.9,194.84,25.26514411]
[1734671751050,25.26514411,194.89,194.81,45.26514411]
[1734671751250,0.96229929,194.88,194.82,25.26514411]
[1734671751551,25.26514411,194.9,194.83,25.26514411]
[1734671751755,0.96221089,194.89,194.83,25.26514411]
[1734671751981,26.227355,194.89,194.82,25.26514411]
[1734671752184,23.776884,194.88,194.82,25.26514411]
[1734671752476,25.26514411,194.91,194.83,25.26514411]
[1734671753077,25.26514411,194.91,194.84,25.26514411]
[1734671753289,25.26514411,194.92,194.84,25.26514411]
[1734671753463,0.96209589,194.91,194.84,25.26514411]
[1734671753777,26.22724,194.91,194.83,25.26514411]
[1734671753961,25.26514411,194.9,194.82,25.26514411]
[1734671754163,49.04202811,194.88,194.81,45.26514411]
[1734671754352,0.96232289,194.87,194.8,25.26514411]
[1734671754756,49.04202811,194.88,194.81,25.26514411]
[1734671754959,23.776884,194.88,194.82,25.26514411]
[1734671755282,24.73909905,194.88,194.82,25.26514411]
[1734671755455,24.73909905,194.88,194.81,25.26514411]
[1734671758969,24.73909905,194.88,194.81,15.81679839]
[1734671759367,0.96221505,194.88,194.81,15.81679839]
[1734671759580,19.0466,194.94,194.77,13.60521258]
[1734671759581,23.776884,194.9,194.84,15.81679839]
[1734671759788,23.776884,194.9,194.8,20.0]
[1734671759789,23.776884,194.88,194.82,15.81679839]
[1734671759961,0.96231974,194.87,194.81,15.81679839]
[1734671760406,15.81679839,194.9,194.83,15.81679839]
[1734671760655,15.81679839,194.9,194.8,20.0]
[1734671760656,15.81679839,194.91,194.84,15.81679839]
[1734671760868,0.96213629,194.93,194.85,15.81679839]
[1734671761058,0.96201166,194.94,194.87,15.81679839]
[1734671761373,0.96196631,194.98,194.93,15.81679839]
[1734671761582,16.77854277,195.02,194.95,15.81679839]
[1734671761884,16.77854277,195.02,194.9,2.0137]
[1734671761885,0.96174438,195.02,194.96,15.81679839]
[1734671762091,0.96174438,195.02,194.95,15.81679839]
[1734671762289,0.96158159,195.02,194.95,15.81679839]
[1734671762466,15.81679839,195.0,194.93,15.81679839]
[1734671762668,15.81679839,194.97,194.9,15.81679839]
[1734671762882,16.77864344,194.96,194.89,15.81679839]
[1734671763072,26.24942243,194.96,194.89,25.28757738]
[1734671763267,25.28757738,194.94,194.87,25.28757738]
[1734671763480,25.28757738,195.0,194.85,33.64597738]
[1734671763481,26.24956865,194.93,194.85,33.64597738]
[1734671763662,25.28757738,194.92,194.85,25.28757738]
[1734671763856,23.776884,194.92,194.85,25.28757738]
[1734671764083,23.776884,194.92,194.81,13.60202429]
[1734671764084,26.24958543,194.91,194.84,45.28757738]
[1734671764662,49.06446138,194.9,194.83,25.28757738]
[1734671764878,0.96223205,194.89,194.82,25.28757738]
[1734671765257,23.776884,194.88,194.8,8.3584]
[1734671765457,0.96234773,194.87,194.77,12.8354]
[1734671765654,25.28757738,194.89,194.78,0.12549]
[1734671765882,0.96223388,194.92,194.86,25.28757738]
[1734671766184,25.28757738,194.88,194.8,25.28757738]
[1734671766362,0.96230682,194.87,194.8,25.28757738]
[1734671766571,26.2498842,194.87,194.79,25.28757738]
[1734671766774,49.06446138,194.86,194.79,25.28757738]
[1734671766959,25.28757738,194.84,194.77,25.28757738]
[1734671767280,0.96245206,194.83,194.78,25.28757738]
[1734671767493,0.96247784,194.84,194.78,25.28757738]
[1734671767860,23.776884,194.87,194.8,25.28757738]
[1734671768099,26.24994585,194.86,194.79,45.28757738]
[1734671768460,26.24990225,194.86,194.79,45.28757738]
[1734671769058,23.776884,194.85,194.78,25.28757738]
[1734671769404,49.06446138,194.83,194.75,25.28757738]
[1734671769559,26.25017129,194.82,194.75,25.28757738]
[1734671769764,25.28757738,194.8,194.73,25.28757738]
[1734671770091,0.96266709,194.79,194.72,25.28757738]
[1734671770465,26.25024447,194.79,194.72,25.28757738]
[1734671770779,26.25024447,194.79,194.71,1.9895]
[1734671770780,25.28757738,194.78,194.71,25.28757738]
[1734671770977,0.96278769,194.77,194.71,25.28757738]
[1734671771283,26.25036507,194.77,194.69,57.59878871]
[1734671771468,49.06446138,194.74,194.69,10.0]
[1734671771662,49.06446138,194.72,194.69,10.0]
[1734671771864,25.841884,194.76,194.69,10.0]
[1734671771865,26.25067465,194.71,194.69,10.0]
[1734671772486,23.776884,194.7,194.69,10.0]
[1734671773080,25.28757738,194.72,194.69,10.0]
[1734671773287,0.96304329,194.71,194.69,10.0]
[1734671773590,23.776884,194.7,194.69,10.0]
[1734671773971,25.28757738,194.72,194.69,10.0]
[1734671774189,23.776884,194.72,194.69,10.0]
[1734671774378,24.73990926,194.72,194.69,10.0]
[1734671775292,25.28757738,194.74,194.69,10.0]
[1734671775472,23.776884,194.74,194.69,10.0]
[1734671775670,0.96292754,194.74,194.69,35.28757738]
[1734671775987,23.776884,194.74,194.69,10.0]
[1734671776202,0.9629222,194.73,194.69,10.0]
[1734671776402,24.7398809,194.74,194.69,10.0]
[1734671777992,25.28757738,194.72,194.69,10.0]
[1734671778183,0.96308098,194.71,194.69,10.0]
[1734671778685,26.25065836,194.71,194.69,10.0]
[1734671780001,26.2507112,194.73,194.69,10.0]
[1734671781402,49.06446138,194.72,194.69,10.0]
[1734671781696,49.06446138,194.7,194.69,10.0]
[1734671782475,50.02767112,194.7,194.69,10.0]
[1734671783601,25.28757738,194.73,194.69,10.0]
[1734671783897,26.25057832,194.72,194.69,10.0]
[1734671784077,25.28757738,194.71,194.69,10.0]
[1734671784277,0.96316447,194.7,194.69,10.0]
[1734671784723,26.25074185,194.7,194.69,10.0]
[1734671784999,50.02762585,194.7,194.69,10.0]
[1734671787401,75.31520323,194.7,194.69,10.0]
[1734671787605,83.95430323,194.7,194.69,10.0]
[1734671788304,83.95430323,194.7,194.69,6.8917]
[1734671789280,23.776884,194.69,194.65,0.6198882]
[1734671789480,45.28757738,194.66,194.65,0.6198882]
[1734671789704,69.06446138,194.66,194.65,0.6198882]
[1734671790277,70.0281293,194.66,194.65,0.6198882]
[1734671790480,20.0,194.61,194.5,2.0749]
[1734671790709,25.28757738,194.56,194.5,2.0749]
[1734671790889,25.28757738,194.58,194.51,25.28757738]
[1734671791094,0.96376857,194.57,194.51,25.28757738]
[1734671791291,26.25134595,194.57,194.5,27.36247738]
[1734671791807,23.776884,194.56,194.5,27.36247738]
[1734671791994,0.96387304,194.55,194.5,27.36247738]
[1734671792303,0.96387304,194.55,194.46,0.77106214]
[1734671792304,26.25145042,194.55,194.48,25.28757738]
[1734671792514,23.776884,194.58,194.52,25.28757738]
[1734671792812,0.96375945,194.57,194.52,25.28757738]
[1734671792996,0.96375945,194.57,194.51,25.28757738]
[1734671793809,49.06446138,194.56,194.49,25.28757738]
[1734671794005,0.96391414,194.55,194.49,25.28757738]
[1734671794216,0.96391414,194.55,194.5,25.28757738]
[1734671794398,23.776884,194.56,194.5,25.28757738]
[1734671794592,0.96387694,194.55,194.5,25.28757738]
[1734671794814,0.96387694,194.55,194.49,25.28757738]
[1734671795496,23.776884,194.54,194.48,45.28757738]
[1734671795698,0.9640204,194.53,194.48,45.28757738]
[1734671795894,25.28757738,194.55,194.48,45.28757738]
[1734671796204,1.9678,194.61,194.49,25.28757738]
[1734671796205,0.96389543,194.54,194.49,25.28757738]
[1734671796415,0.96389543,194.54,194.48,45.28757738]
[1734671796602,0.96389543,194.54,194.48,20.0]
[1734671796917,25.28757738,194.5,194.45,0.6198882]
[1734671797119,26.2518105,194.49,194.45,0.6198882]
[1734671797293,31.64957738,194.46,194.45,0.6198882]
[1734671797495,23.776884,194.42,194.3,25.28757738]
[1734671797805,25.28757738,194.37,194.29,25.28757738]
[1734671798000,0.96483464,194.36,194.29,25.28757738]
[1734671798214,25.28757738,194.37,194.29,25.28757738]
[1734671798399,25.28757738,194.38,194.31,25.28757738]
[1734671798593,25.28757738,194.38,194.3,25.28757738]
[1734671798594,0.9647691,194.37,194.3,25.28757738]
[1734671799106,25.28757738,194.36,194.26,22.0523]
[1734671799309,26.25234775,194.35,194.31,20.0]
[1734671799516,26.25234775,194.35,194.28,25.28757738]
[1734671799821,0.96477037,194.35,194.29,25.28757738]
[1734671800128,25.28757738,194.38,194.31,25.28757738]
[1734671800304,49.06446138,194.36,194.28,25.28757738]
[1734671800625,0.96486903,194.35,194.28,25.28757738]
[1734671800803,25.28757738,194.39,194.32,25.28757738]
[1734671801216,25.28757738,194.38,194.31,25.28757738]
[1734671801415,25.28757738,194.38,194.3,25.28757738]
[1734671801624,25.28757738,194.38,194.31,25.28757738]
[1734671802130,25.28757738,194.4,194.35,20.0]
[1734671802297,25.28757738,194.41,194.35,20.0]
[1734671803197,25.28757738,194.4,194.35,20.0]
[1734671803719,25.28757738,194.44,194.37,25.28757738]
[1734671805021,25.28757738,194.44,194.35,20.77163763]
[1734671805022,25.28757738,194.39,194.35,20.0]
[1734671805404,25.28757738,194.41,194.36,20.0]
[1734671805706,25.28757738,194.43,194.36,25.28757738]
[1734671806293,26.25195381,194.42,194.37,20.0]
[1734671806521,25.28757738,194.41,194.37,20.0]
[1734671806725,25.28757738,194.4,194.37,20.0]
[1734671806904,25.28757738,194.4,194.32,33.83117738]
[1734671807111,25.28757738,194.37,194.32,8.5436]
[1734671807504,25.28757738,194.37,194.32,2.048]
[1734671807718,25.28757738,194.37,194.29,25.28757738]
[1734671808609,25.28757738,194.36,194.28,44.65807738]
[1734671808812,25.28757738,194.37,194.29,25.28757738]
[1734671809203,25.28757738,194.36,194.28,31.79027738]
[1734671809402,25.28757738,194.33,194.26,47.29487738]
[1734671809617,23.776884,194.38,194.26,47.29487738]
[1734671809902,25.28757738,194.33,194.26,22.0073]
[1734671810618,25.28757738,194.33,194.26,45.28757738]
[1734671811012,25.28757738,194.32,194.26,20.0]
[1734671811206,26.25253874,194.31,194.26,20.0]
[1734671811409,25.28757738,194.3,194.26,20.0]
[1734671811814,25.28757738,194.29,194.26,20.0]
[1734671812315,26.25271354,194.28,194.26,20.0]
[1734671812520,25.28757738,194.28,194.26,20.0]
[1734671813020,25.28757738,194.29,194.26,20.0]
[1734671813743,25.28757738,194.33,194.26,45.28757738]
[1734671813912,25.28757738,194.34,194.27,25.28757738]
[1734671814237,25.28757738,194.32,194.26,20.0]
[1734671815343,26.25256725,194.31,194.26,20.0]
[1734671815509,25.28757738,194.32,194.26,20.0]
[1734671815702,25.28757738,194.33,194.26,20.0]
[1734671816930,25.28757738,194.35,194.28,25.28757738]
[1734671817238,25.28757738,194.37,194.3,25.28757738]
[1734671817444,25.28757738,194.37,194.29,25.28757738]
[1734671817945,25.28757738,194.35,194.28,25.28757738]
[1734671820504,25.28757738,194.38,194.31,25.28757738]
[1734671820814,25.28757738,194.38,194.3,25.28757738]
[1734671821025,25.28757738,194.37,194.3,25.28757738]
[1734671822027,25.28757738,194.38,194.3,25.28757738]
[1734671822935,25.28757738,194.37,194.29,38.92672724]
[1734671823231,25.28757738,194.33,194.26,51.66667738]
[1734671823413,25.28757738,194.35,194.27,25.28757738]
[1734671823612,0.96480704,194.39,194.26,26.3791]
[1734671823613,25.28757738,194.36,194.29,25.28757738]
[1734671823916,25.28757738,194.37,194.3,25.28757738]
[1734671824319,25.28757738,194.37,194.27,13.6404242]
[1734671824320,25.28757738,194.37,194.29,25.28757738]
[1734671824519,25.28757738,194.34,194.27,25.28757738]
[1734671824715,25.28757738,194.31,194.26,20.0]
[1734671824939,25.28757738,194.29,194.26,20.0]
[1734671825144,25.28757738,194.3,194.26,20.0]
[1734671825647,25.28757738,194.28,194.26,20.0]
[1734671826144,25.28757738,194.3,194.26,20.0]
[1734671826445,0.96514835,194.29,194.26,20.0]
[1734671827318,26.25272573,194.29,194.26,20.0]
[1734671827521,0.96514835,194.29,194.26,20.0]
[1734671827965,26.25272573,194.29,194.26,20.0]
[1734671828245,49.06446138,194.27,194.26,20.0]
[1734671829150,57.78726138,194.27,194.25,0.6198882]
[1734671829336,57.78726138,194.27,194.06,2.02655019]
[1734671829337,25.28757738,194.15,194.01,9.42290544]
[1734671829533,25.28757738,194.15,194.07,25.28757738]
[1734671829734,25.28757738,194.16,194.09,25.28757738]
[1734671829962,25.28757738,194.18,194.09,25.28757738]
[1734671830122,0.96581607,194.17,194.09,25.28757738]
[1734671830326,25.28757738,194.14,194.09,7.62242]
[1734671830649,0.96583882,194.16,194.09,7.62242]
[1734671830650,26.2534162,194.16,194.09,32.90999738]
[1734671830941,25.28757738,194.2,194.12,25.28757738]
[1734671831147,0.96568782,194.19,194.12,25.28757738]
[1734671831347,0.9658318,194.18,194.12,25.28757738]
[1734671831527,25.28757738,194.22,194.14,25.28757738]
[1734671831944,0.96551164,194.21,194.14,25.28757738]
[1734671833455,25.28757738,194.22,194.14,25.28757738]
[1734671834352,25.28757738,194.2,194.15,20.0]
[1734671834554,0.96572235,194.19,194.15,20.0]
[1734671834753,0.96572235,194.19,194.12,33.64107738]
[1734671836552,25.28757738,194.2,194.12,33.64107738]
[1734671837131,0.96561334,194.19,194.12,33.64107738]
[1734671838552,0.96561334,194.19,194.12,25.28757738]
[1734671839858,25.28757738,194.19,194.12,25.28757738]
[1734671840060,25.28757738,194.17,194.1,25.28757738]
[1734671840350,25.28757738,194.15,194.09,7.62242]
[1734671840563,0.96592595,194.14,194.09,7.62242]
[1734671840775,25.28757738,194.15,194.09,7.62242]
[1734671840937,0.96588376,194.14,194.09,7.62242]
[1734671841535,25.28757738,194.13,194.09,7.62242]
[1734671841833,0.96615016,194.12,194.09,7.62242]
[1734671842243,6.3737,194.17,194.09,7.62242]
[1734671842244,25.28757738,194.14,194.09,7.62242]
[1734671842432,26.25366287,194.16,194.09,32.90999738]
[1734671843357,26.25366287,194.16,194.09,7.62242]
[1734671843961,26.25366287,194.16,194.09,32.90999738]
[1734671845947,26.25366287,194.16,194.09,7.62242]
[1734671847360,25.28757738,194.14,194.09,7.62242]
[1734671847571,0.96590006,194.13,194.09,7.62242]
[1734671847870,25.28757738,194.18,194.11,25.28757738]
[1734671848040,0.9657071,194.22,194.11,25.28757738]
[1734671848242,25.28757738,194.2,194.11,25.28757738]
[1734671848463,25.28757738,194.21,194.14,45.28757738]
[1734671849342,0.96555578,194.2,194.14,20.0]
[1734671849542,26.25313316,194.2,194.14,20.0]
[1734671850059,26.25313316,194.2,194.12,27.43237738]
[1734671850264,25.28757738,194.18,194.12,27.43237738]
[1734671850450,26.25333898,194.17,194.1,25.28757738]
[1734671850641,25.28757738,194.17,194.1,25.28757738]
[1734671851349,25.28757738,194.15,194.08,25.28757738]
[1734671851568,25.28757738,194.17,194.1,25.28757738]
[1734671852241,25.28757738,194.19,194.1,25.28757738]
[1734671852442,0.96568431,194.18,194.1,25.28757738]
[1734671853051,0.96568431,194.18,194.12,20.0]
[1734671853251,0.96568431,194.18,194.11,15.93185942]
[1734671853470,15.93185942,194.19,194.11,15.93185942]
[1734671853657,15.93185942,194.2,194.12,15.93185942]
[1734671853839,15.93185942,194.18,194.11,15.93185942]
[1734671854043,15.93185942,194.19,194.11,15.93185942]
[1734671854845,15.93185942,194.19,194.12,20.0]
[1734671856270,15.93185942,194.19,194.12,35.93185942]
[1734671856450,15.93185942,194.19,194.12,48.81035942]
[1734671859572,15.93185942,194.18,194.12,48.81035942]
[1734671859747,15.93185942,194.18,194.12,32.8785]
[1734671860649,15.93185942,194.21,194.14,15.93185942]
[1734671860849,15.93185942,194.21,194.15,15.93185942]
[1734671861668,15.93185942,194.22,194.15,15.93185942]
[1734671861868,0.96542212,194.27,194.17,17.96215942]
[1734671862185,0.96542212,194.27,194.19,15.93185942]
[1734671862186,15.93185942,194.26,194.19,15.93185942]
[1734671862349,15.93185942,194.25,194.18,15.93185942]
[1734671863682,15.93185942,194.24,194.18,15.93185942]
[1734671865391,15.93185942,194.22,194.17,2.0303]
[1734671865678,15.93185942,194.18,194.12,9.62722]
[1734671865985,15.93185942,194.17,194.12,9.62722]
[1734671866584,15.93185942,194.18,194.12,9.62722]
[1734671867464,15.93185942,194.17,194.12,9.62722]
[1734671867686,15.93185942,194.19,194.12,25.55907942]
[1734671868261,15.93185942,194.18,194.12,9.62722]
[1734671868459,15.93185942,194.19,194.12,25.55907942]
[1734671869384,15.93185942,194.2,194.13,15.93185942]
[1734671869574,15.93185942,194.23,194.16,35.93185942]
[1734671870382,15.93185942,194.24,194.17,15.93185942]
[1734671870600,15.93185942,194.26,194.18,15.93185942]
[1734671870969,15.93185942,194.24,194.17,15.93185942]
[1734671871286,15.93185942,194.23,194.16,20.0]
[1734671871581,15.93185942,194.22,194.18,20.0]
[1734671871764,15.93185942,194.22,194.15,15.93185942]
[1734671873463,15.52430482,194.22,194.15,15.93185942]
[1734671874167,15.52430482,194.22,194.14,15.93185942]
[1734671874359,15.93185942,194.21,194.14,15.93185942]
[1734671874565,15.93185942,194.22,194.14,15.93185942]
[1734671874780,15.93185942,194.22,194.15,15.93185942]
[1734671875674,15.93185942,194.21,194.13,28.80975942]
[1734671875875,15.93185942,194.22,194.14,15.93185942]
[1734671876387,15.93185942,194.22,194.15,15.93185942]
[1734671881189,15.93185942,194.22,194.13,23.55427942]
[1734671881387,15.93185942,194.18,194.13,7.62242]
[1734671881689,15.93185942,194.19,194.13,7.62242]
[1734671881888,12.8689,194.27,194.13,7.62242]
[1734671881889,15.93185942,194.16,194.13,7.62242]
[1734671882487,15.93185942,194.17,194.13,7.62242]
[1734671883865,15.93185942,194.18,194.13,7.62242]
[1734671884067,15.93185942,194.2,194.13,7.62242]
[1734671884499,15.93185942,194.2,194.13,23.55427942]
[1734671884794,15.93185942,194.2,194.13,7.62242]
[1734671886291,15.93185942,194.19,194.13,7.62242]
[1734671886995,15.93185942,194.18,194.13,7.62242]
[1734671888372,15.93185942,194.16,194.13,7.62242]
[1734671888574,15.93185942,194.15,194.13,7.62242]
[1734671889176,15.93185942,194.17,194.13,7.62242]
[1734671889798,15.86989485,194.17,194.13,7.62242]
[1734671890478,15.93185942,194.15,194.13,7.62242]
[1734671891399,15.93185942,194.16,194.13,7.62242]
[1734671896708,15.93185942,194.14,194.13,7.62242]
[1734671897702,15.93185942,194.16,194.13,7.62242]
[1734671899404,39.70874342,194.14,194.13,0.5356431]
[1734671900213,15.93185942,194.14,194.13,0.5356431]
[1734671900401,39.70874342,194.14,194.13,0.5356431]
[1734671902510,39.70874342,194.14,194.05,0.6492052]
[1734671902511,15.93185942,194.11,194.05,0.6492052]
[1734671902692,15.93185942,194.15,194.08,15.93185942]
[1734671902893,15.93185942,194.16,194.09,15.93185942]
[1734671903390,15.93185942,194.16,194.05,2.7510052]
[1734671903391,15.93185942,194.15,194.08,15.93185942]
[1734671903815,15.93185942,194.16,194.09,15.93185942]
[1734671904888,15.93185942,194.17,194.1,15.93185942]
[1734671905112,23.776884,194.16,194.1,15.93185942]
[1734671905298,23.776884,194.16,194.05,3.52372699]
[1734671905299,15.93185942,194.16,194.09,15.93185942]
[1734671905801,15.93185942,194.17,194.09,15.93185942]
[1734671906000,15.93185942,194.18,194.11,15.93185942]
[1734671906591,15.93185942,194.19,194.12,15.93185942]
[1734671906809,15.93185942,194.18,194.11,15.93185942]
[1734671908515,15.93185942,194.2,194.13,15.93185942]
[1734671908697,15.93185942,194.2,194.08,20.77266606]
[1734671908698,15.93185942,194.22,194.15,15.93185942]
[1734671911909,15.93185942,194.2,194.14,2.175]
[1734671912109,15.93185942,194.21,194.14,18.10685942]
[1734671913217,15.93185942,194.22,194.15,15.93185942]
[1734671914418,15.93185942,194.21,194.14,18.10685942]
[1734671917126,10.19409221,194.2,194.14,2.175]
[1734671917327,10.19409221,194.18,194.13,6.5178]
[1734671917504,10.19409221,194.18,194.11,10.19409221]
[1734671917700,2.1328,194.17,194.11,10.19409221]
[1734671917905,2.1328,194.17,194.07,32.8814]
[1734671917906,23.776884,194.09,194.02,8.00595815]
[1734671918117,20.0,194.1,194.0,8.00595815]
[1734671918118,10.19409221,194.06,194.0,8.00595815]
[1734671918332,33.97097621,194.06,194.0,8.00595815]
[1734671919504,33.97097621,194.06,193.94,10.19409221]
[1734671919724,33.97097621,194.06,193.96,10.19409221]
[1734671920129,33.97097621,194.06,193.97,10.19409221]
[1734671920319,33.97097621,194.06,193.95,10.19409221]
[1734671920509,33.97097621,194.06,193.9,47.89436538]
[1734671920510,33.97097621,194.06,193.96,10.19409221]
[1734671920907,20.0,194.09,193.97,15.9563509]
[1734671921131,15.9563509,194.06,193.98,15.9563509]
[1734671922012,15.9563509,194.06,193.97,15.9563509]
[1734671922314,39.7332349,194.06,193.97,15.9563509]
[1734671922637,15.9563509,194.06,193.97,15.9563509]
[1734671922930,15.9563509,194.06,193.9,7.11799654]
[1734671923134,39.7332349,194.06,193.95,15.9563509]
[1734671924517,39.7332349,194.06,193.96,15.9563509]
[1734671926137,39.7332349,194.06,193.98,15.9563509]
[1734671926431,15.9563509,194.06,193.98,15.9563509]
[1734671927026,15.9563509,194.06,193.97,15.9563509]
[1734671928123,39.7332349,194.06,193.96,15.9563509]
[1734671928435,39.7332349,194.06,193.94,35.9563509]
[1734671928624,23.776884,194.06,193.95,15.9563509]
[1734671928813,39.7332349,194.06,193.94,35.9563509]
[1734671929008,39.7332349,194.06,193.92,15.9563509]
[1734671930020,39.7332349,194.06,193.93,15.9563509]
[1734671930337,20.0,194.02,193.89,2.1067]
[1734671930571,15.9563509,193.9,193.86,8.7382]
[1734671931219,15.9563509,193.9,193.8,8.7382]
[1734671931417,15.9563509,193.9,193.83,15.9563509]
[1734671932225,15.9563509,193.87,193.8,8.7382]
[1734671932413,15.9563509,193.87,193.8,24.6945509]
[1734671932615,15.9563509,193.88,193.81,15.9563509]
[1734671932814,15.9563509,193.9,193.83,15.9563509]
[1734671933119,15.9563509,193.89,193.82,15.9563509]
[1734671933515,15.9563509,193.9,193.83,15.9563509]
[1734671933714,15.9563509,193.92,193.85,16.6055561]
[1734671933936,15.9563509,193.95,193.88,15.9563509]
[1734671934141,15.9563509,193.96,193.89,15.9563509]
[1734671934319,15.9563509,193.91,193.85,0.6492052]